bitfinex/quotes_ETHUSD_20251010
["timestamp","ask_amount","ask_price","bid_price","bid_amount"]
[1760134217904,3.85086472,3903.5,3903.4,0.39903091]
[1760134218140,2.56265696,3902.2,3902.1,0.93283091]
[1760134218344,3.85624758,3902.2,3902.1,0.93283091]
[1760134218910,8.98164758,3902.2,3902.1,0.93283091]
[1760134219116,8.98164758,3902.2,3902.1,2.16283091]
[1760134219434,3.85624758,3902.2,3902.1,2.16283091]
[1760134220844,3.85624758,3902.2,3902.1,3.39283091]
[1760134221049,3.85624758,3902.2,3902.1,3.0419883]
[1760134221346,3.99008987,3902.2,3902.1,3.0419883]
[1760134222243,4.6388905,3902.2,3902.1,4.2719883]
[1760134222419,4.6388905,3902.2,3902.1,3.6219883]
[1760134222750,4.13768038,3902.2,3902.1,3.57073451]
[1760134223735,4.13768038,3902.2,3902.1,4.14363451]
[1760134223920,4.05216914,3902.2,3902.1,4.00971346]
[1760134224251,3.53728846,3902.2,3902.1,4.00971346]
[1760134224445,4.18604426,3902.2,3902.1,2.99434563]
[1760134224944,3.40336851,3902.2,3902.1,2.99434563]
[1760134225127,3.53732773,3902.2,3902.1,4.22434563]
[1760134226140,3.53732773,3902.2,3902.1,4.09038511]
[1760134226141,3.40336851,3902.2,3902.1,4.09038511]
[1760134226536,3.40336851,3902.2,3902.1,5.32038511]
[1760134226945,3.40336851,3902.2,3902.1,5.18643154]
[1760134227548,4.05831759,3902.2,3902.1,5.18643154]
[1760134228033,3.40336851,3902.2,3902.1,6.41643154]
[1760134228432,4.06159679,3902.2,3902.1,6.41643154]
[1760134228643,3.40336851,3902.2,3902.1,6.41643154]
[1760134229330,1.25822925,3902.4,3902.1,6.41643154]
[1760134229527,1.25822925,3902.4,3902.1,7.64643154]
[1760134229928,2.56248736,3902.5,3902.1,7.51256441]
[1760134230162,3.83363463,3902.2,3902.1,7.51256441]
[1760134230945,3.83363463,3902.2,3902.1,8.74256441]
[1760134231159,4.18083371,3902.2,3902.1,8.74256441]
[1760134231368,4.49520232,3902.2,3902.1,8.74256441]
[1760134231543,4.44096147,3902.2,3902.1,8.74256441]
[1760134231752,4.42962016,3902.2,3902.1,8.74256441]
[1760134232145,2.56247837,3902.5,3902.1,8.74256441]
[1760134232348,2.56265696,3902.2,3902.1,9.97256441]
[1760134232632,1.22796335,3904.2,3902.1,9.97256441]
[1760134232951,2.56265696,3902.2,3902.1,9.97256441]
[1760134233535,3.83363463,3902.2,3902.1,9.97256441]
[1760134233768,3.83363463,3902.2,3902.1,11.20256441]
[1760134234547,3.83363463,3902.2,3902.1,11.20356441]
[1760134235374,3.83363463,3902.2,3902.1,12.43356441]
[1760134235553,4.48128726,3902.2,3902.1,12.06056441]
[1760134236050,4.48128726,3902.2,3902.1,11.92654026]
[1760134236370,4.85902406,3902.2,3902.1,11.92654026]
[1760134236549,4.85902406,3902.2,3902.1,13.15654026]
[1760134238274,4.10828726,3902.2,3902.1,14.38654026]
[1760134238445,3.46063463,3902.2,3902.1,14.38654026]
[1760134238639,4.10826182,3902.2,3902.1,14.38654026]
[1760134238841,3.46063463,3902.2,3902.1,14.38654026]
[1760134239137,3.46063463,3902.2,3902.1,14.25254052]
[1760134239567,3.46063463,3902.2,3902.1,15.48254052]
[1760134239776,2.56259129,3902.3,3902.1,15.48254052]
[1760134239946,2.56264291,3902.3,3902.1,15.48254052]
[1760134240145,0.002,3902.4,3902.1,15.48254052]
[1760134241175,0.002,3902.4,3902.1,16.71254052]
[1760134242441,0.002,3902.4,3902.1,17.94254052]
[1760134242747,0.002,3902.4,3902.1,17.89128804]
[1760134243780,0.002,3902.4,3902.1,19.12128804]
[1760134244248,2.56259129,3902.3,3902.1,19.12128804]
[1760134244449,2.56264541,3902.3,3902.1,19.12128804]
[1760134244850,2.56259129,3902.3,3902.1,19.12128804]
[1760134245052,2.56259129,3902.3,3902.1,20.21724479]
[1760134245275,1.27097767,3902.2,3902.1,20.21724479]
[1760134245476,3.21002761,3902.3,3902.1,20.21724479]
[1760134245477,2.56259129,3902.3,3902.1,20.21724479]
[1760134245777,1.27159919,3902.3,3902.1,20.21724479]
[1760134245959,0.002,3902.4,3902.1,20.21724479]
[1760134246166,1.27097767,3902.2,3902.1,20.21724479]
[1760134246484,0.002,3902.4,3902.1,21.44724479]
[1760134247958,0.002,3902.4,3902.1,22.67724479]
[1760134249180,0.002,3902.4,3902.1,23.90724479]
[1760134250690,0.002,3902.4,3902.1,25.13724479]
[1760134251077,2.56259129,3902.3,3902.1,25.13724479]
[1760134251282,0.002,3905.4,3902.1,25.13724479]
[1760134251591,0.002,3905.4,3902.2,0.39993716]
[1760134252094,0.002,3905.4,3902.2,1.23]
[1760134252258,0.002,3905.4,3902.3,0.36125073]
[1760134252590,0.002,3905.4,3902.2,1.23]
[1760134252956,2.5613512,3904.2,3902.2,1.23]
[1760134253156,0.002,3905.4,3902.2,1.23]
[1760134253357,0.002,3905.4,3902.2,2.46]
[1760134253990,0.002,3905.0,3902.2,2.46]
[1760134254765,0.00584843,3904.7,3902.2,3.69]
[1760134254960,2.56131298,3904.3,3902.2,3.69]
[1760134255172,0.002,3905.0,3902.2,3.69]
[1760134255575,2.56226712,3902.8,3902.2,3.69]
[1760134255868,2.56256281,3902.4,3902.2,3.69]
[1760134256074,2.56256281,3902.4,3902.2,4.92]
[1760134256564,0.00584843,3902.3,3902.2,4.92]
[1760134256766,2.56256281,3902.4,3902.2,4.92]
[1760134257605,0.00199592,3902.9,3902.2,6.15]
[1760134257771,2.55947835,3907.1,3902.2,6.15]
[1760134258097,1.24549967,3917.3,3902.2,6.15]
[1760134258269,2.56156351,3903.9,3902.2,6.15]
[1760134258469,1.20207854,3905.3,3902.2,6.15]
[1760134258696,0.64653256,3904.6,3902.2,6.15]
[1760134258896,2.56286459,3905.0,3902.2,7.38]
[1760134259096,2.56258948,3902.4,3902.2,6.79542109]
[1760134260095,2.56259129,3902.3,3902.2,6.79542109]
[1760134260275,1.91535406,3905.0,3902.2,8.02542109]
[1760134260471,0.002,3905.0,3902.3,0.33032215]
[1760134260683,0.002,3905.0,3902.2,8.02542109]
[1760134260898,2.56196996,3903.3,3902.2,8.02542109]
[1760134261201,2.56259129,3902.3,3902.2,8.02542109]
[1760134261380,2.56259129,3902.3,3902.2,7.71652805]
[1760134261574,2.56259129,3902.3,3902.2,8.94652805]
[1760134261771,2.56242345,3902.6,3902.2,8.94652805]
[1760134261772,0.00199592,3903.8,3902.2,8.94652805]
[1760134262004,1.29867874,3904.9,3902.2,8.94652805]
[1760134262179,1.2997401,3904.5,3902.2,8.94652805]
[1760134262492,2.55985765,3906.5,3902.2,8.94652805]
[1760134262691,2.55865932,3908.3,3902.2,8.8952933]
[1760134262870,2.56072188,3905.2,3902.2,10.1252933]
[1760134263077,2.55958897,3906.9,3902.2,10.1252933]
[1760134263381,2.56028691,3905.9,3902.2,10.1252933]
[1760134263575,2.55965094,3906.8,3902.2,10.1252933]
[1760134263803,1.27739746,3906.7,3902.2,10.1252933]
[1760134264120,1.24257284,3906.1,3902.2,10.1252933]
[1760134264302,0.64671867,3907.4,3902.2,10.1252933]
[1760134264303,1.25050405,3918.0,3902.3,1.29318804]
[1760134264503,1.24792692,3919.1,3909.7,0.3875635]
[1760134264708,1.24792692,3919.1,3905.8,0.35198992]
[1760134265004,1.25101402,3919.2,3905.9,1.58479301]
[1760134265205,1.26992139,3919.3,3906.0,0.34870901]
[1760134265408,1.26992139,3919.3,3906.1,0.30798616]
[1760134265605,0.00584581,3916.4,3906.2,0.35791315]
[1760134265918,2.5532428,3916.6,3906.0,1.23]
[1760134266114,1.22066656,3915.5,3906.0,1.23]
[1760134266317,2.55530305,3913.5,3906.0,1.23]
[1760134266523,0.002,3916.5,3906.1,1.58691773]
[1760134266722,0.002,3916.5,3906.1,1.93379556]
[1760134267019,0.002,3916.5,3906.1,1.58691773]
[1760134267221,0.002,3916.5,3906.2,0.3443664]
[1760134267561,1.28378962,3913.2,3906.1,1.23]
[1760134267828,1.22938659,3914.5,3906.1,1.23]
[1760134268006,0.29332706,3913.9,3906.1,1.23]
[1760134268191,1.2497563,3913.8,3906.1,1.23]
[1760134268390,0.29334298,3913.7,3906.1,1.23]
[1760134268594,2.55948076,3907.1,3906.1,2.46]
[1760134268778,1.28378962,3913.2,3906.1,2.46]
[1760134268983,2.55996043,3906.4,3906.1,2.46]
[1760134269313,2.56003276,3906.2,3906.1,1.63158119]
[1760134269615,2.55935232,3907.3,3906.1,1.63158119]
[1760134269616,1.28622123,3920.0,3906.1,1.62858419]
[1760134269786,1.28747923,3915.6,3906.1,1.62858419]
[1760134269986,1.28747923,3915.6,3906.1,2.85858419]
[1760134270183,2.5584235,3908.7,3906.1,2.85858419]
[1760134270498,1.28747923,3915.6,3906.1,2.85858419]
[1760134270698,1.29542037,3913.1,3906.1,2.85858419]
[1760134270925,2.5560625,3912.3,3906.1,2.85858419]
[1760134271083,1.29542037,3913.1,3906.1,2.85858419]
[1760134271297,0.002,3913.2,3906.1,2.85858419]
[1760134271500,2.55990746,3906.4,3906.1,4.08858419]
[1760134271741,1.29542037,3913.1,3906.1,4.08858419]
[1760134271917,1.24593153,3912.9,3906.1,4.08858419]
[1760134272231,0.27757701,3913.0,3906.1,4.08858419]
[1760134272232,0.29969156,3913.0,3906.1,4.08858419]
[1760134272432,0.33830422,3912.8,3906.1,4.08858419]
[1760134272600,1.20845337,3912.7,3906.1,4.08858419]
[1760134272801,1.2176918,3912.5,3906.1,5.31858419]
[1760134273009,1.29694705,3912.3,3906.1,5.31858419]
[1760134273209,0.00584581,3913.1,3906.1,5.31858419]
[1760134273409,0.002,3914.0,3906.1,5.31858419]
[1760134273703,1.29542037,3913.1,3906.1,5.31858419]
[1760134274034,2.55558395,3913.0,3906.1,5.31858419]
[1760134274236,0.002,3914.0,3906.1,6.54858419]
[1760134274739,2.55570572,3912.9,3906.1,6.54858419]
[1760134274923,0.002,3914.0,3906.1,6.54858419]
[1760134275305,0.002,3914.0,3906.2,0.34773817]
[1760134275501,0.002,3914.0,3906.2,0.36662911]
[1760134275713,0.002,3914.0,3906.2,1.23]
[1760134276135,2.55504145,3913.9,3906.2,1.23]
[1760134276446,0.002,3914.0,3906.2,1.23]
[1760134276645,1.28610115,3913.9,3906.2,1.23]
[1760134276815,1.29542037,3913.1,3906.2,1.23]
[1760134277006,2.55834301,3908.8,3906.2,2.46]
[1760134277208,1.29542037,3913.1,3906.2,2.46]
[1760134277742,2.55996723,3906.3,3906.2,2.46]
[1760134277929,1.23568718,3910.5,3906.2,2.46]
[1760134278237,1.29542037,3913.1,3906.2,2.32985845]
[1760134278441,1.29035825,3912.4,3906.2,3.55985845]
[1760134278648,0.26593291,3913.5,3906.2,3.55985845]
[1760134278833,1.24479601,3913.6,3906.2,3.55985845]
[1760134279040,0.26593291,3913.1,3906.2,3.55985845]
[1760134279225,2.55597587,3912.4,3906.2,3.55985845]
[1760134279555,0.002,3913.6,3906.2,3.55985845]
[1760134279856,1.29542037,3913.1,3906.2,4.78985845]
[1760134280254,0.002,3913.6,3906.2,4.38582031]
[1760134280412,2.55996723,3906.3,3906.2,4.38582031]
[1760134280617,2.55996723,3906.3,3906.1,5.81249014]
[1760134280950,2.55996723,3906.3,3906.1,1.92152127]
[1760134281112,2.55996723,3906.3,3906.1,1.77269587]
[1760134281320,1.28749476,3906.2,3906.1,1.65609587]
[1760134281524,1.28749476,3906.2,3906.1,1.28309587]
[1760134281726,1.28749476,3906.2,3906.1,1.27340283]
[1760134282060,1.28749476,3906.2,3906.1,0.83298054]
[1760134282234,1.28749476,3906.2,3906.1,0.80498054]
[1760134282433,1.42171976,3906.2,3906.1,2.03498054]
[1760134282622,1.42171976,3906.2,3906.1,1.98377923]
[1760134282822,0.134225,3906.2,3906.1,1.98377923]
[1760134283055,2.48765118,3906.3,3906.1,1.98377923]
[1760134283266,2.31801655,3906.3,3906.1,1.98377923]
[1760134283630,1.28749476,3906.2,3906.1,1.98377923]
[1760134283861,1.28749476,3906.2,3906.1,3.21377923]
[1760134284032,1.93444878,3906.2,3906.1,3.21377923]
[1760134284366,1.93444878,3906.2,3902.2,11.3552933]
[1760134284367,1.22031194,3905.4,3902.2,11.3552933]
[1760134284659,1.21833676,3905.9,3902.2,11.3552933]
[1760134284862,2.56259129,3902.3,3902.2,11.3552933]
[1760134285064,1.21833676,3905.9,3902.2,11.3552933]
[1760134285235,1.21833676,3905.9,3902.2,12.5852933]
[1760134285439,2.5625493,3902.4,3902.2,12.5852933]
[1760134286143,1.25138612,3909.2,3902.2,12.5852933]
[1760134286366,2.56259129,3902.3,3902.2,12.5852933]
[1760134286691,2.56259129,3902.3,3902.2,13.8152933]
[1760134286986,3.83419048,3902.3,3902.2,12.08770707]
[1760134287193,3.83419048,3902.3,3902.2,11.95338219]
[1760134288070,3.83419048,3902.3,3902.2,12.98658219]
[1760134288975,3.96853387,3902.3,3902.2,12.98658219]
[1760134289395,3.83419048,3902.3,3902.2,13.64928219]
[1760134289693,2.56216102,3903.0,3902.2,13.64928219]
[1760134289694,2.56254349,3902.4,3902.2,13.64928219]
[1760134289896,0.13431024,3904.0,3902.2,13.64928219]
[1760134289897,0.64699861,3904.0,3902.2,13.64928219]
[1760134290130,1.27159919,3902.3,3902.2,13.64928219]
[1760134290262,1.23650191,3902.3,3902.2,13.64928219]
[1760134290667,2.56235644,3902.7,3902.2,13.64928219]
[1760134290866,1.25622284,3905.0,3902.2,14.87928219]
[1760134291091,1.21176398,3906.2,3902.2,14.87928219]
[1760134291296,1.29469121,3906.1,3902.2,14.87928219]
[1760134291502,1.21176398,3906.2,3902.2,14.87928219]
[1760134292005,0.001,3906.3,3902.2,14.87928219]
[1760134292006,1.23650191,3902.3,3902.2,14.87928219]
[1760134292167,2.56254955,3902.4,3902.2,16.10928219]
[1760134292521,1.23650191,3902.3,3902.2,16.10928219]
[1760134292670,1.21176398,3906.2,3902.2,16.10928219]
[1760134293168,1.22027959,3906.3,3902.2,16.10928219]
[1760134293365,1.23353685,3905.6,3902.2,16.10928219]
[1760134293581,0.64690831,3905.3,3902.2,17.33928219]
[1760134293778,0.49214692,3905.3,3902.2,17.33928219]
[1760134293985,0.001,3906.3,3902.2,17.33928219]
[1760134294181,1.21176398,3906.2,3902.2,17.33928219]
[1760134294402,2.5600983,3906.1,3902.2,17.33928219]
[1760134294604,1.21176398,3906.2,3902.2,17.33928219]
[1760134295104,0.001,3906.3,3902.2,18.56928219]
[1760134295572,2.56103212,3906.3,3902.2,18.56928219]
[1760134295769,0.001,3906.3,3902.2,18.56928219]
[1760134296369,0.001,3906.3,3902.2,19.79928219]
[1760134298023,2.56003276,3906.2,3902.2,21.02928219]
[1760134298200,0.001,3906.3,3902.2,21.02928219]
[1760134299429,0.001,3906.3,3902.2,22.25928219]
[1760134299884,1.29704517,3906.0,3902.2,22.25928219]
[1760134300083,0.001,3906.3,3902.2,22.25928219]
[1760134300280,1.21176398,3906.2,3902.2,22.25928219]
[1760134300493,0.001,3906.3,3902.2,22.25928219]
[1760134300705,1.26770974,3905.2,3902.2,22.25928219]
[1760134300908,1.21176398,3906.2,3902.2,23.48928219]
[1760134301219,2.56134746,3904.2,3902.2,23.48928219]
[1760134301398,0.001,3906.3,3902.2,23.48928219]
[1760134302205,0.001,3906.3,3902.2,24.71928219]
[1760134302730,0.001,3906.3,3902.2,24.67928275]
[1760134303622,0.001,3906.3,3902.2,25.90928275]
[1760134304190,0.65644359,3906.1,3902.2,25.90928275]
[1760134304620,2.5619351,3903.3,3902.2,25.90928275]
[1760134304821,2.56254273,3902.4,3902.2,25.90928275]
[1760134305022,2.56075388,3905.1,3902.2,27.13928275]
[1760134305229,2.56047715,3905.6,3902.2,27.13928275]
[1760134305433,3.77184284,3906.2,3902.2,27.00502532]
[1760134305608,1.21176398,3906.2,3902.2,27.00502532]
[1760134305805,0.001,3906.3,3902.2,27.00502532]
[1760134306396,0.001,3906.3,3902.2,28.23502532]
[1760134307421,2.56132791,3904.3,3902.2,28.23502532]
[1760134307605,1.21176398,3906.2,3902.2,28.23502532]
[1760134307806,0.001,3906.3,3902.2,29.46502532]
[1760134308008,1.21176398,3906.2,3902.2,29.46502532]
[1760134308331,0.001,3906.3,3902.2,29.46502532]
[1760134309100,0.001,3906.3,3902.2,30.69502532]
[1760134310641,0.001,3906.3,3902.2,31.92502532]
[1760134311297,0.001,3906.3,3902.3,0.40700131]
[1760134311529,0.001,3906.3,3902.2,31.92502532]
[1760134312029,0.001,3906.3,3902.2,33.15502532]
[1760134313235,0.001,3906.3,3902.4,1.21842814]
[1760134313432,0.001,3906.3,3902.5,0.29365949]
[1760134313744,0.001,3906.3,3902.6,0.34845523]
[1760134314231,0.001,3906.3,3902.4,0.26725222]
[1760134314431,0.001,3906.3,3902.2,34.38502532]
[1760134314837,0.001,3906.3,3902.2,35.61502532]
[1760134316007,0.001,3906.3,3902.3,0.27763251]
[1760134316215,0.001,3906.3,3902.2,37.1706844]
[1760134316467,0.001,3906.3,3902.2,36.84502532]
[1760134316836,0.001,3906.3,3902.2,37.11174299]
[1760134317165,0.001,3906.3,3902.3,0.26671767]
[1760134317545,0.001,3906.3,3902.3,1.49671767]
[1760134317870,0.001,3906.3,3902.3,1.23]
[1760134318570,0.001,3906.3,3902.4,0.30841971]
[1760134318968,0.001,3906.3,3902.4,1.53841971]
[1760134319168,0.001,3906.3,3902.4,1.23]
[1760134319546,1.21176398,3906.2,3902.4,1.23]
[1760134319848,0.001,3906.3,3902.4,1.23]
[1760134320449,0.001,3906.3,3902.4,2.46]
[1760134320845,0.001,3906.3,3902.5,0.2976458]
[1760134321048,0.001,3906.3,3902.5,0.63857321]
[1760134321346,0.001,3907.1,3906.7,0.002]
[1760134321542,0.002,3914.0,3906.8,0.67155866]
[1760134321769,0.002,3914.0,3906.9,1.54102465]
[1760134321972,0.002,3914.0,3907.0,0.30548577]
[1760134322175,0.002,3914.0,3907.1,0.55570642]
[1760134322480,0.002,3914.0,3907.2,0.32399175]
[1760134322983,0.002,3914.0,3907.3,0.2104713]
[1760134323274,1.24909127,3913.1,3907.3,1.23]
[1760134323475,0.002,3914.0,3907.3,1.23]
[1760134324101,1.29534801,3913.9,3907.3,1.23]
[1760134324303,0.002,3914.0,3907.3,1.23]
[1760134324488,0.002,3914.0,3907.4,0.9314187]
[1760134325969,0.002,3914.0,3907.4,2.1614187]
[1760134326364,0.002,3914.0,3907.4,1.83051146]
[1760134326583,0.002,3914.0,3907.5,0.26628407]
[1760134326782,0.002,3914.0,3907.6,0.56267461]
[1760134326966,0.002,3914.0,3907.7,0.27883148]
[1760134327167,0.002,3914.0,3907.8,0.58838467]
[1760134327365,0.4583,3942.5,3907.8,0.58838467]
[1760134327366,6.212,3917.9,3907.9,0.28120648]
[1760134327599,6.172,3917.9,3908.0,0.5610385]
[1760134327800,6.172,3917.9,3908.2,1.28138844]
[1760134327963,6.172,3917.9,3908.1,1.83708688]
[1760134328163,6.172,3917.9,3908.3,0.82617892]
[1760134328786,6.172,3917.9,3908.3,2.05617892]
[1760134329299,6.172,3917.9,3908.4,0.27427309]
[1760134329498,6.172,3917.9,3908.3,1.23]
[1760134329668,1.21613319,3917.8,3908.3,1.23]
[1760134329869,6.172,3917.9,3908.3,2.46]
[1760134330221,6.172,3917.9,3908.4,0.29015417]
[1760134330418,6.172,3917.9,3908.3,2.46]
[1760134330878,3.82509554,3917.7,3908.4,0.29261863]
[1760134331204,6.172,3917.9,3908.4,0.29261863]
[1760134331539,6.172,3917.9,3908.5,0.55313827]
[1760134331717,6.172,3917.9,3908.6,1.50536603]
[1760134331922,6.172,3917.9,3908.8,1.2114825]
[1760134332105,6.172,3917.9,3909.0,1.23873818]
[1760134332306,7.42905837,3917.9,3909.1,0.87189824]
[1760134332505,1.21613319,3917.8,3909.2,1.25011431]
[1760134332723,1.21613319,3917.8,3909.3,0.24060014]
[1760134332938,1.21613319,3917.8,3909.4,0.28855045]
[1760134333092,6.172,3917.9,3909.4,0.28855045]
[1760134333518,2.55274633,3917.4,3909.2,0.32088379]
[1760134333720,2.5533997,3916.4,3909.5,0.32227638]
[1760134334033,6.172,3917.9,3909.7,1.20792835]
[1760134334205,6.172,3917.9,3909.8,0.55726431]
[1760134334411,6.172,3917.9,3909.8,0.34399551]
[1760134334596,6.172,3917.9,3909.4,0.32088379]
[1760134334790,1.21613319,3917.8,3909.2,1.23]
[1760134335038,6.172,3917.9,3909.2,1.23]
[1760134335331,1.21613319,3917.8,3909.2,1.23]
[1760134335533,1.21613319,3917.8,3909.2,2.46]
[1760134335700,1.52974442,3917.8,3909.2,2.46]
[1760134335899,2.5524529,3917.8,3909.2,2.46]
[1760134336125,1.21613319,3917.8,3909.2,2.46]
[1760134336326,6.172,3917.9,3909.2,2.46]
[1760134336739,2.55460383,3914.6,3909.2,2.46]
[1760134336905,3.77831581,3917.5,3909.2,3.69]
[1760134337103,1.25561508,3916.3,3909.2,3.69]
[1760134337333,1.20911464,3917.2,3909.2,3.69]
[1760134337515,1.26263524,3915.3,3909.2,3.69]
[1760134337721,2.5524529,3917.8,3909.2,3.69]
[1760134337942,1.2419587,3915.1,3909.2,3.69]
[1760134338145,2.55690529,3911.0,3909.2,3.69]
[1760134338350,2.55800271,3909.3,3909.2,4.92]
[1760134338518,6.172,3911.0,3909.2,4.92]
[1760134339755,6.172,3911.0,3909.2,6.15]
[1760134340325,6.05003852,3911.0,3909.2,6.15]
[1760134341126,6.05003852,3911.0,3909.2,7.38]
[1760134342643,6.05003852,3911.0,3909.2,8.61]
[1760134343023,5.95547389,3911.0,3909.2,8.61]
[1760134343214,5.92409974,3911.0,3909.2,8.61]
[1760134343411,5.89409974,3911.0,3909.2,8.61]
[1760134344111,5.89409974,3911.0,3909.2,9.84]
[1760134345655,5.89409974,3911.0,3909.2,11.07]
[1760134346950,5.89409974,3911.0,3909.2,12.3]
[1760134348126,5.89409974,3911.0,3909.2,12.17391527]
[1760134348323,5.89409974,3911.0,3909.2,13.40391527]
[1760134349750,5.89409974,3911.0,3909.2,14.63391527]
[1760134350760,0.33014298,3910.9,3909.2,14.63391527]
[1760134351044,0.66319627,3910.9,3909.2,14.63391527]
[1760134351248,0.33305329,3910.9,3909.2,15.86391527]
[1760134351762,5.89409974,3911.0,3909.2,15.86391527]
[1760134352754,5.89409974,3911.0,3909.2,16.87831527]
[1760134353721,2.55797975,3909.4,3909.2,16.87831527]
[1760134353925,2.55797975,3909.4,3909.2,18.10831527]
[1760134354652,1.22756218,3910.9,3909.2,18.10831527]
[1760134354850,1.24705531,3911.1,3909.2,18.10831527]
[1760134355062,2.55762189,3909.9,3909.2,18.10831527]
[1760134355249,5.89409974,3911.0,3909.2,19.33831527]
[1760134356531,5.89409974,3911.0,3909.2,20.56831527]
[1760134358174,5.89409974,3911.0,3909.2,21.79831527]
[1760134359481,5.89409974,3911.0,3909.2,23.02831527]
[1760134360136,1.92,3910.9,3909.2,23.02831527]
[1760134360777,1.92,3910.9,3909.2,22.95831527]
[1760134361067,5.89509974,3911.0,3909.2,22.95831527]
[1760134361277,1.25288525,3909.3,3909.2,22.95831527]
[1760134362098,1.25288525,3909.3,3909.2,24.18831527]
[1760134362401,0.37621203,3909.3,3909.2,24.05422707]
[1760134362804,0.36087753,3909.3,3909.2,24.05422707]
[1760134363103,1.61376278,3909.3,3909.2,23.65481999]
[1760134363267,1.61376278,3909.3,3909.2,23.26681116]
[1760134363461,1.57206586,3909.3,3909.2,24.39098907]
[1760134363668,1.3881341,3909.3,3909.2,24.10316863]
[1760134363867,1.25288525,3909.3,3909.2,24.10316863]
[1760134364093,1.38700177,3909.3,3909.2,24.0683557]
[1760134364298,1.38700177,3909.3,3909.2,23.53522328]
[1760134364482,1.38700177,3909.3,3909.2,23.25108771]
[1760134364801,1.63599862,3909.3,3909.2,23.25108771]
[1760134365003,1.25288525,3909.3,3909.2,24.48108771]
[1760134365327,1.5018821,3909.3,3909.2,24.48108771]
[1760134365530,1.25288525,3909.3,3909.2,24.34694985]
[1760134365826,1.5018821,3909.3,3909.2,24.34694985]
[1760134366324,1.83091854,3909.3,3909.2,24.34694985]
[1760134366516,1.83091854,3909.3,3909.2,25.57694985]
[1760134366714,2.11248125,3909.3,3909.2,25.57694985]
[1760134367092,1.83091854,3909.3,3909.2,25.57694985]
[1760134367293,2.11248125,3909.3,3909.2,19.17546124]
[1760134367603,1.5018821,3909.3,3909.2,17.07597435]
[1760134367800,1.7061561,3909.3,3909.2,16.6133375]
[1760134367995,1.56798455,3909.3,3909.2,14.6133375]
[1760134368195,1.77024648,3909.3,3909.2,14.6133375]
[1760134368527,1.52124963,3909.3,3909.2,6.14702872]
[1760134368701,1.84324864,3909.3,3909.2,6.14702872]
[1760134368895,1.31838591,3909.3,3909.2,6.14702872]
[1760134369096,1.67994849,3909.3,3909.2,6.14702872]
[1760134369291,1.42345014,3909.3,3909.2,7.10571582]
[1760134369496,1.57234768,3909.3,3909.2,4.62803846]
[1760134369796,1.57286531,3909.3,3909.2,4.62803846]
[1760134370133,1.7226802,3909.3,3909.2,3.89295121]
[1760134370308,1.50776437,3909.3,3909.2,2.55190615]
[1760134370509,1.50776437,3909.3,3909.2,3.61278219]
[1760134370699,1.5397394,3909.3,3909.2,3.22563591]
[1760134371094,1.50776437,3909.3,3909.2,3.22563591]
[1760134371536,1.50776437,3909.3,3909.2,3.09136454]
[1760134371823,1.50776437,3909.3,3909.2,2.32136454]
[1760134372195,1.21822008,3909.3,3909.2,2.32136454]
[1760134373228,1.21822008,3909.3,3909.2,3.55136454]
[1760134373623,1.21822008,3909.3,3909.2,3.33236454]
[1760134373854,1.21822008,3909.3,3909.2,3.19809844]
[1760134374155,1.25019511,3909.3,3909.2,1.52509844]
[1760134374524,1.25019511,3909.3,3909.2,2.62074307]
[1760134375460,1.39019511,3909.3,3909.2,2.56574307]
[1760134375659,7.32019511,3909.3,3909.2,1.42280824]
[1760134375828,7.28822008,3909.3,3909.2,2.65280824]
[1760134376030,7.28822008,3909.3,3909.2,1.78480824]
[1760134376558,7.28822008,3909.3,3909.2,0.84549602]
[1760134376930,7.28822008,3909.3,3909.2,0.71116165]
[1760134377127,7.28822008,3909.3,3909.2,1.94116165]
[1760134377447,7.22569414,3909.3,3909.2,0.80687356]
[1760134377646,7.22569414,3909.3,3909.2,0.15687356]
[1760134377851,7.22569414,3909.3,3909.2,0.00287356]
[1760134378153,3.79165247,3909.2,3909.1,0.16483999]
[1760134378355,3.82362832,3909.2,3909.1,0.16483999]
[1760134378555,3.82362832,3909.2,3909.1,1.23]
[1760134378965,3.79165247,3909.2,3909.1,1.23]
[1760134379125,3.79165247,3909.2,3909.1,0.58]
[1760134379927,3.79165247,3909.2,3909.1,1.81]
[1760134380133,2.55852628,3908.5,3908.3,0.8488134]
[1760134380325,2.55852628,3908.5,3901.7,0.001]
[1760134380326,2.39792857,3907.8,3907.7,0.49563122]
[1760134380524,5.96693729,3909.3,3901.7,0.001]
[1760134380525,1.25334357,3906.7,3901.7,0.001]
[1760134380725,2.5624169,3902.6,3902.4,1.71849586]
[1760134381034,1.20562546,3906.4,3902.4,1.71849586]
[1760134381255,2.55986914,3906.5,3902.4,1.71849586]
[1760134381256,2.56245252,3902.6,3902.4,2.94849586]
[1760134381645,2.50825314,3902.6,3902.4,2.94849586]
[1760134382159,1.22622635,3902.5,3902.4,1.95049586]
[1760134382525,1.22622635,3902.5,3902.4,1.73349586]
[1760134382757,1.22622635,3902.5,3902.4,2.96349586]
[1760134383173,1.24275759,3902.5,3902.4,2.96349586]
[1760134383388,1.29965909,3902.5,3902.4,2.31549586]
[1760134383667,1.27393845,3902.5,3902.4,2.31549586]
[1760134384066,1.27393845,3902.5,3902.4,3.54549586]
[1760134384969,1.27393845,3902.5,3902.4,2.32649586]
[1760134385676,1.27393845,3902.5,3902.4,3.55649586]
[1760134386176,1.24888591,3902.5,3902.4,3.55649586]
[1760134386534,2.50825314,3902.6,3902.4,3.55649586]
[1760134386970,2.50825314,3902.6,3902.4,4.78649586]
[1760134387162,2.56101822,3904.7,3902.4,4.78649586]
[1760134387363,1.26650153,3909.2,3902.4,4.78649586]
[1760134388139,1.29739552,3904.3,3902.4,4.78649586]
[1760134388335,1.24888591,3902.5,3902.4,6.01649586]
[1760134389368,2.56244283,3902.6,3902.4,6.01649586]
[1760134389764,2.56244283,3902.6,3902.4,7.24649586]
[1760134389946,2.56210506,3903.1,3902.4,7.24649586]
[1760134390277,2.56245996,3902.5,3902.4,7.24649586]
[1760134390641,2.56240603,3902.6,3902.4,7.24649586]
[1760134391173,1.24888591,3902.5,3902.4,7.24649586]
[1760134391375,1.24888591,3902.5,3902.4,8.47649586]
[1760134392043,1.24888591,3902.5,3902.4,7.71681608]
[1760134392367,1.28091665,3902.5,3902.4,7.34381608]
[1760134392739,1.28091665,3902.5,3902.4,8.57381608]
[1760134392964,1.24888591,3902.5,3902.4,8.57381608]
[1760134393348,2.56240603,3902.6,3902.4,8.57381608]